bitfinex/quotes_SOLUSD_20240714
["timestamp","ask_amount","ask_price","bid_price","bid_amount"]
[1720961226611,6.9325,144.25,144.21,6.9341]
[1720961226789,45.0,144.24,144.21,6.9341]
[1720961227209,51.9329,144.24,144.2,22.8328]
[1720961227813,45.0,144.24,144.21,6.9342]
[1720961227978,6.932,144.26,144.21,6.9342]
[1720961227979,45.0,144.25,144.21,6.9342]
[1720961228411,51.9325,144.25,144.21,6.9342]
[1720961229612,51.9325,144.25,144.2,22.8327]
[1720961229822,51.9325,144.25,144.21,6.9339]
[1720961229995,6.9325,144.25,144.21,6.9339]
[1720961230188,17.3245,144.31,144.2,15.8981]
[1720961230595,6.9315,144.27,144.23,6.933]
[1720961230809,6.9311,144.28,144.23,6.933]
[1720961231198,6.9311,144.28,144.24,6.9326]
[1720961231697,6.9318,144.27,144.2,15.8981]
[1720961232099,6.932,144.26,144.2,15.8981]
[1720961233108,45.0,144.25,144.2,15.8981]
[1720961233312,6.9329,144.24,144.2,22.8328]
[1720961233501,6.9321,144.26,144.2,15.8981]
[1720961234417,6.9321,144.26,144.22,6.9338]
[1720961234718,51.9326,144.25,144.21,6.9341]
[1720961234912,45.0,144.25,144.2,22.8328]
[1720961235115,45.0,144.26,144.2,15.8981]
[1720961236026,6.9329,144.24,144.2,22.8325]
[1720961236522,45.0,144.23,144.19,6.9351]
[1720961237724,51.9334,144.23,144.19,6.9351]
[1720961238920,45.0,144.23,144.2,6.9346]
[1720961239242,6.932,144.26,144.22,6.9335]
[1720961239533,6.9327,144.25,144.18,1.38682611]
[1720961240423,6.9319,144.26,144.22,6.9337]
[1720961241397,6.9324,144.25,144.21,6.9342]
[1720961242327,6.932,144.26,144.21,6.9342]
[1720961242930,6.932,144.26,144.22,16.4109]
[1720961244336,6.9324,144.25,144.22,16.4109]
[1720961250120,6.9318,144.27,144.23,6.9332]
[1720961252229,6.931,144.28,144.24,8.31898739]
[1720961253127,6.9304,144.3,144.25,6.9322]
[1720961253436,6.9304,144.3,144.26,1.38622442]
[1720961253925,6.9304,144.3,144.25,6.9322]
[1720961257139,17.3227,144.32,144.22,16.4109]
[1720961257443,45.0,144.31,144.22,16.4109]
[1720961257656,38.1853,144.3,144.22,16.4109]
[1720961257814,6.9323,144.26,144.22,16.4109]
[1720961258839,6.9323,144.26,144.22,23.3445]
[1720961259853,6.9314,144.27,144.23,6.9333]
[1720961260053,6.931,144.28,144.24,6.9328]
[1720961260554,6.931,144.28,144.23,6.9332]
[1720961261250,6.931,144.28,144.24,6.9327]
[1720961261854,45.0,144.31,144.24,6.9327]
[1720961261855,6.9306,144.29,144.24,6.9327]
[1720961262258,6.931,144.28,144.24,6.9327]
[1720961262428,6.931,144.28,144.23,6.9332]
[1720961262623,6.931,144.28,144.23,8.31967463]
[1720961262854,6.9306,144.29,144.24,8.31887375]
[1720961263234,6.9306,144.29,144.25,6.9322]
[1720961265057,6.9306,144.29,144.24,6.9327]
[1720961266963,83.1841,144.31,144.23,6.933]
[1720961268152,83.1841,144.31,144.22,23.3447]
[1720961268359,6.9314,144.27,144.23,6.9332]
[1720961270039,6.931,144.28,144.24,6.9328]
[1720961273467,6.9306,144.29,144.25,6.9323]
[1720961273646,62.3241,144.31,144.22,16.4109]
[1720961273846,62.3241,144.31,144.24,6.9325]
[1720961274045,6.9311,144.28,144.24,6.9325]
[1720961274864,6.9305,144.29,144.25,6.9322]
[1720961276454,6.931,144.28,144.24,6.9328]
[1720961276658,6.931,144.28,144.24,8.31916547]
[1720961277468,6.9319,144.26,144.22,16.4109]
[1720961277653,6.9315,144.27,144.23,6.9333]
[1720961278051,6.932,144.26,144.22,16.4109]
[1720961278256,6.932,144.26,144.22,17.7974681]
[1720961278772,6.932,144.26,144.22,16.4109]
[1720961278974,6.9314,144.28,144.22,17.79747935]
[1720961279175,6.9316,144.27,144.23,6.9332]
[1720961280962,15.9459,144.29,144.18,15.9489]
[1720961281151,6.9331,144.24,144.2,6.9344]
[1720961281372,6.9322,144.26,144.19,1.38686739]
[1720961282250,6.9322,144.26,144.22,6.9337]
[1720961283849,6.9314,144.28,144.23,6.9333]
[1720961286978,6.9314,144.28,144.24,6.9327]
[1720961288075,23.8196,144.34,144.25,1.38648977]
[1720961288247,6.9298,144.31,144.26,6.9314]
[1720961289082,6.9302,144.3,144.26,6.9314]
[1720961289854,6.9295,144.31,144.27,6.9313]
[1720961290466,6.93,144.3,144.26,6.9318]
[1720961292280,47.44259143,144.34,144.23,16.4125]
[1720961292281,6.9305,144.29,144.23,16.4125]
[1720961292777,47.44259143,144.34,144.23,16.4125]
[1720961292778,6.9299,144.31,144.26,6.9317]
[1720961293078,6.9299,144.31,144.27,6.9314]
[1720961293571,47.44259143,144.34,144.23,16.4125]
[1720961293879,45.0,144.33,144.23,16.4125]
[1720961294659,6.9305,144.29,144.23,16.4125]
[1720961294881,6.93,144.3,144.26,6.9318]
[1720961295180,6.9304,144.29,144.25,6.9322]
[1720961297408,6.93,144.3,144.26,6.9318]
[1720961304689,6.9306,144.29,144.23,16.4125]
[1720961305011,6.9316,144.27,144.23,23.3455]
[1720961305205,6.931,144.28,144.24,6.9328]
[1720961306398,6.931,144.28,144.23,16.4125]
[1720961306399,6.9307,144.29,144.25,6.9322]
[1720961306799,38.1831,144.32,144.25,6.9322]
[1720961307004,45.0,144.31,144.25,6.9322]
[1720961308713,6.9306,144.29,144.25,6.9322]
[1720961309010,20.86,144.29,144.18,16.5989]
[1720961309208,6.9315,144.27,144.22,6.9334]
[1720961309510,45.0,144.26,144.23,6.9332]
[1720961310809,51.9319,144.26,144.22,6.9337]
[1720961311118,6.9319,144.26,144.22,6.9337]
[1720961311924,6.9305,144.29,144.25,6.9324]
[1720961313790,6.9302,144.3,144.26,6.9317]
[1720961315293,6.9304,144.29,144.23,16.5989]
[1720961315885,6.9304,144.29,144.23,17.98538122]
[1720961316209,6.9304,144.29,144.25,6.9322]
[1720961318107,6.9314,144.27,144.23,23.5321]
[1720961319213,6.9319,144.26,144.22,6.9337]
[1720961319390,6.9315,144.27,144.23,6.9332]
[1720961320097,38.1831,144.32,144.2,1.38668419]
[1720961320304,45.0,144.31,144.21,1.38646647]
[1720961320510,6.9301,144.3,144.26,6.9315]
[1720961322323,6.9305,144.29,144.25,6.9322]
[1720961322901,6.9301,144.3,144.26,6.9315]
[1720961324598,51.9299,144.31,144.26,6.9317]
[1720961325392,6.9302,144.3,144.26,6.9317]
[1720961328021,6.252,144.33,144.27,6.9313]
[1720961328225,6.252,144.33,144.28,6.9306]
[1720961328226,6.9292,144.32,144.28,6.9306]
[1720961330142,13.1807,144.33,144.28,6.9306]
[1720961331116,13.1807,144.33,144.29,6.9304]
[1720961331321,6.9287,144.33,144.29,6.9304]
[1720961332029,6.929,144.32,144.28,6.9308]
[1720961333225,6.9285,144.33,144.29,6.9303]
[1720961334722,6.9279,144.35,144.3,6.9297]
[1720961336417,6.9283,144.34,144.3,6.9297]
[1720961339018,6.9277,144.35,144.31,6.9295]
[1720961341751,6.9281,144.34,144.3,6.9299]
[1720961343033,13.1746,144.36,144.31,6.9293]
[1720961343235,51.9278,144.35,144.31,6.9293]
[1720961343751,6.927,144.37,144.32,6.9287]
[1720961343940,6.927,144.37,144.33,6.9284]
[1720961344623,6.9272,144.36,144.29,15.0168]
[1720961344828,38.1749,144.39,144.29,15.0168]
[1720961345537,6.9277,144.35,144.29,15.0168]
[1720961345733,6.9272,144.36,144.29,15.0168]
[1720961347651,6.9285,144.34,144.29,15.0168]
[1720961347959,6.9277,144.35,144.3,6.9295]
[1720961348133,6.9283,144.34,144.3,6.9295]
[1720961351360,65.86,144.38,144.31,6.9292]
[1720961352054,6.9277,144.35,144.31,6.9292]
[1720961354341,6.9282,144.34,144.3,6.9299]
[1720961355258,6.9286,144.33,144.29,21.9471]
[1720961357354,6.9279,144.35,144.31,6.9292]
[1720961359258,6.927,144.37,144.32,17.10047414]
[1720961359645,6.927,144.37,144.32,22.6435]
[1720961360257,6.9262,144.38,144.32,15.7147]
[1720961360557,6.9262,144.38,144.34,6.928]
[1720961362468,27.09223142,144.41,144.35,6.9273]
[1720961362641,6.9257,144.39,144.35,6.9273]
[1720961366666,51.9253,144.4,144.36,6.9271]
[1720961366963,6.9253,144.4,144.36,6.9271]
[1720961368463,6.9247,144.41,144.37,6.9265]
[1720961368652,6.9247,144.41,144.37,23.3513]
[1720961369054,6.23223142,144.45,144.38,6.9259]
[1720961369359,6.23223142,144.45,144.37,16.4248]
[1720961369360,6.9248,144.41,144.37,23.351]
[1720961369740,27.198,144.42,144.32,16.4248]
[1720961369945,75.67039367,144.41,144.32,16.4248]
[1720961370160,72.92984967,144.41,144.32,16.4248]
[1720961370365,6.927,144.37,144.32,23.3533]
[1720961371145,6.9262,144.38,144.32,16.4248]
[1720961371655,6.9262,144.38,144.33,6.9284]
[1720961372354,6.9262,144.38,144.34,6.928]
[1720961372554,6.9267,144.37,144.33,6.9282]
[1720961372757,20.86,144.4,144.32,16.4248]
[1720961372954,51.9257,144.39,144.35,6.9276]
[1720961373269,51.99193188,144.39,144.35,6.9276]
[1720961374549,0.06623188,144.39,144.32,16.4248]
[1720961374742,0.06623188,144.39,144.33,1.38549594]
[1720961375754,0.06623188,144.39,144.37,6.9264]
[1720961378246,0.06623188,144.39,144.32,16.4248]
[1720961378447,0.06623188,144.39,144.37,6.9266]
[1720961381073,0.06623188,144.39,144.36,6.9269]
[1720961381460,0.06623188,144.39,144.37,6.9265]
[1720961382173,0.06623188,144.39,144.38,6.9261]
[1720961382769,7.82603524,144.41,144.37,6.9265]
[1720961382948,13.2624,144.42,144.38,6.9259]
[1720961383949,6.9238,144.43,144.39,6.9252]
[1720961391381,15.47633802,144.44,144.4,6.925]
[1720961392459,6.9226,144.46,144.42,6.9238]
[1720961394184,6.9219,144.47,144.42,6.9238]
[1720961394963,6.9219,144.47,144.43,6.9236]
[1720961397756,6.9214,144.48,144.43,6.9236]
[1720961399692,6.922,144.47,144.43,6.9236]
[1720961401366,0.2,144.49,144.38,6.313]
[1720961401571,52.1212,144.49,144.44,6.923]
[1720961402482,52.1212,144.49,144.45,6.9227]
[1720961403874,45.2,144.49,144.46,6.9222]
[1720961404077,0.2,144.49,144.46,6.9222]
[1720961405172,0.2,144.49,144.45,6.9226]
[1720961405173,7.1208,144.49,144.45,6.9226]
[1720961408697,6.9219,144.47,144.43,6.9234]
[1720961408868,16.2188,144.49,144.38,16.3922]
[1720961408869,6.9228,144.45,144.38,16.3922]
[1720961409178,45.0,144.44,144.38,16.3922]
[1720961409971,20.86,144.48,144.43,6.9236]
[1720961410173,65.86,144.48,144.41,6.9244]
[1720961410494,20.86,144.46,144.41,6.9244]
[1720961410673,45.0,144.45,144.41,6.9244]
[1720961411489,45.0,144.45,144.42,6.924]
[1720961411673,6.9224,144.46,144.42,6.924]
[1720961412067,20.86,144.48,144.38,16.3922]
[1720961412394,6.9231,144.45,144.41,6.9245]
[1720961412592,6.9224,144.46,144.42,6.924]
[1720961414074,6.9233,144.44,144.38,16.3922]
[1720961414376,6.9232,144.45,144.38,16.3922]
[1720961414582,6.9232,144.45,144.41,6.9245]
[1720961415493,6.9223,144.46,144.42,6.9241]
[1720961415996,6.9223,144.46,144.39,1.38501006]
[1720961415997,6.9216,144.48,144.43,6.9233]
[1720961416176,6.9216,144.48,144.39,1.38491793]
[1720961416495,6.9216,144.48,144.39,20.0]
[1720961417573,6.9216,144.48,144.44,6.9229]
[1720961419680,0.2,144.49,144.39,20.0]
[1720961419887,6.9229,144.45,144.38,16.3922]
[1720961420087,6.9233,144.44,144.38,16.3922]
[1720961420890,6.9233,144.44,144.39,6.9256]
[1720961421211,51.9238,144.43,144.34,16.3922]
[1720961421376,6.9242,144.42,144.34,16.3922]
[1720961422574,6.9242,144.42,144.38,6.926]
[1720961422994,45.0,144.41,144.38,6.926]
[1720961423213,45.0,144.41,144.37,6.9266]
[1720961423214,51.9248,144.41,144.37,6.9266]
[1720961423997,65.86,144.41,144.3,16.3922]
[1720961424200,65.86,144.41,144.31,1.38571921]
[1720961424584,45.0,144.41,144.31,1.38571921]
[1720961424901,45.0,144.41,144.37,6.9265]
[1720961425485,45.0,144.42,144.37,6.9265]
[1720961425690,51.9242,144.42,144.38,6.9261]
[1720961427096,6.9252,144.41,144.3,16.3922]
[1720961427323,45.0,144.4,144.36,6.927]
[1720961427899,72.7854,144.4,144.34,6.9276]
[1720961428108,72.7854,144.4,144.35,6.9274]
[1720961428597,6.927,144.37,144.32,6.929]
[1720961428806,27.7861,144.39,144.33,6.9281]
[1720961428987,27.7861,144.39,144.35,6.9275]
[1720961428988,45.0,144.38,144.35,6.9275]
[1720961429579,51.9261,144.38,144.3,16.3922]
[1720961431494,6.9266,144.37,144.3,16.3922]
[1720961431787,51.9261,144.38,144.3,16.3922]
[1720961431995,45.0,144.38,144.3,16.3922]
[1720961432210,6.9257,144.39,144.3,16.3922]
[1720961432585,6.9257,144.39,144.31,1.38559816]
[1720961432784,6.9262,144.38,144.34,6.928]
[1720961433009,6.9268,144.37,144.3,16.3922]
[1720961433189,6.9262,144.38,144.34,6.9279]
[1720961433397,6.9262,144.38,144.3,16.3922]
[1720961433784,6.9262,144.38,144.33,6.9285]
[1720961433990,6.9267,144.37,144.33,6.9285]
[1720961434306,51.9267,144.37,144.33,6.9285]
[1720961434892,45.0,144.37,144.3,16.3922]
[1720961435110,51.9267,144.37,144.32,6.9286]
[1720961435889,51.9267,144.37,144.33,6.9282]
[1720961436087,45.0,144.37,144.34,6.928]
[1720961438191,45.0,144.37,144.33,6.9285]
[1720961438805,6.5553,144.38,144.35,6.9275]
[1720961439005,6.5553,144.38,144.34,6.928]
[1720961439208,6.5553,144.38,144.35,6.9273]
[1720961439610,13.4814,144.38,144.3,16.3922]
[1720961439790,45.0,144.37,144.3,16.3922]
[1720961439989,6.5553,144.38,144.35,6.9275]
[1720961440417,6.5553,144.38,144.34,6.9277]
[1720961442626,6.5553,144.38,144.33,6.9284]
[1720961442806,45.0,144.37,144.33,6.9284]
[1720961443500,51.9267,144.37,144.33,6.9284]
[1720961444016,13.4816,144.38,144.34,6.9279]
[1720961446916,6.9257,144.39,144.35,6.9276]
[1720961448227,6.9266,144.38,144.3,16.3922]
[1720961449333,6.9267,144.37,144.3,16.3922]
[1720961449844,6.9264,144.38,144.3,16.3922]
[1720961450011,45.0,144.37,144.3,16.3922]
[1720961451024,51.9266,144.37,144.3,16.3922]
[1720961451525,45.0,144.37,144.3,16.3922]
[1720961452917,45.0,144.37,144.31,1.38577388]
[1720961453132,6.9262,144.38,144.3,16.3922]
[1720961453603,37.2544,144.4,144.3,16.3922]
[1720961453808,51.9258,144.39,144.3,16.3922]
[1720961454018,6.9264,144.38,144.3,16.3922]
[1720961454437,45.0,144.37,144.3,16.3922]
[1720961459539,45.0,144.38,144.3,16.3922]
[1720961461049,45.0,144.39,144.3,16.3922]
[1720961461220,45.0,144.39,144.31,1.38574954]
[1720961461933,45.0,144.39,144.3,16.3922]
[1720961462140,1.0,144.38,144.3,16.3922]
[1720961462347,1.0,144.38,144.31,1.3855941]
[1720961462648,1.0,144.38,144.3,16.3922]
[1720961462847,1.0,144.38,144.31,1.38559276]
[1720961463054,1.0,144.38,144.3,16.3922]
[1720961463349,6.9269,144.37,144.3,16.3922]
[1720961463535,1.0,144.38,144.3,16.3922]
[1720961463732,1.0,144.38,144.31,1.38555852]
[1720961463942,1.0,144.38,144.31,1.38555406]
[1720961464450,7.9253,144.4,144.31,1.38555406]
[1720961464643,1.0,144.39,144.31,1.38555406]
[1720961465357,7.9256,144.39,144.31,1.38555406]
[1720961465736,1.0,144.38,144.31,1.38555406]
[1720961466639,1.0,144.38,144.3,16.3922]
[1720961467232,7.9263,144.38,144.3,16.3922]
[1720961467433,1.0,144.37,144.3,16.3922]
[1720961467625,1.73199549,144.37,144.3,16.3922]
[1720961467833,1.73199549,144.37,144.31,1.38556776]
[1720961468247,1.73183575,144.41,144.32,21.4585]
[1720961468533,1.73183575,144.41,144.33,1.38536818]
[1720961469130,1.73183575,144.41,144.34,15.3424]
[1720961469330,1.73158965,144.43,144.35,1.38527172]
[1720961469651,6.9252,144.4,144.36,1.38527118]
[1720961470032,6.9248,144.41,144.36,1.38527118]
[1720961470246,1.73158897,144.42,144.36,1.38527118]
[1720961470444,17.3087,144.44,144.34,15.3424]
[1720961470445,6.9248,144.41,144.34,15.3424]
[1720961470729,6.9243,144.42,144.35,1.38512827]
[1720961470927,6.9243,144.42,144.36,1.38513643]
[1720961471758,6.9247,144.41,144.36,1.38513643]
[1720961473066,1.73142538,144.4,144.36,1.38513643]
[1720961473560,1.73142538,144.4,144.35,20.0]
[1720961474938,6.9243,144.42,144.36,1.38517658]
[1720961476857,6.9243,144.42,144.35,20.0]
[1720961477442,1.73141995,144.44,144.37,15.3424]
[1720961477643,1.73098055,144.45,144.38,21.38478444]
[1720961477837,0.2,144.49,144.39,15.3424]
[1720961477838,6.922,144.47,144.39,15.3424]
[1720961478157,6.9237,144.44,144.39,15.3424]
[1720961478362,1.73126249,144.43,144.39,15.3424]
[1720961478939,8.65416406,144.45,144.39,16.72733124]
[1720961479236,6.9238,144.43,144.39,15.3424]
[1720961479440,1.73141585,144.42,144.39,15.3424]
[1720961479656,20.86,144.44,144.34,15.3424]
[1720961479865,46.73171737,144.43,144.34,15.3424]
[1720961480764,67.59171737,144.43,144.34,15.3424]
[1720961481442,6.9248,144.41,144.34,15.3424]
[1720961481642,1.73177778,144.4,144.34,15.3424]
[1720961481860,1.73177907,144.39,144.34,15.3424]
[1720961482654,1.73177924,144.4,144.34,15.3424]
[1720961482859,1.73159631,144.39,144.34,15.3424]
[1720961483055,1.73159869,144.42,144.34,15.3424]
[1720961484036,1.73159869,144.42,144.35,1.38521258]
[1720961484274,1.73130978,144.44,144.35,21.38521258]
[1720961484440,1.73130978,144.44,144.36,1.38504542]
[1720961484637,1.73130978,144.44,144.36,1.38518285]
[1720961485251,1.73146277,144.43,144.36,1.38518285]
[1720961485440,1.73146453,144.46,144.36,1.38518285]
[1720961485766,6.9233,144.44,144.36,1.38518285]
[1720961485959,1.73146333,144.43,144.36,1.38518285]
[1720961486159,1.73146208,144.42,144.36,1.38518285]
[1720961487252,6.9233,144.44,144.36,1.38518285]
[1720961487455,1.73146382,144.43,144.36,1.38518285]
[1720961488553,1.73146382,144.43,144.35,20.0]
[1720961488751,53.65526382,144.43,144.35,20.0]
[1720961488945,8.65526382,144.43,144.35,20.0]
[1720961489146,1.73146382,144.43,144.36,1.38520981]
[1720961489455,6.9235,144.44,144.35,20.0]
[1720961489650,46.73151508,144.43,144.35,20.0]
[1720961490359,53.65521508,144.43,144.35,20.0]
[1720961491248,27.7843,144.42,144.34,15.3424]
[1720961491545,45.0,144.41,144.34,15.3424]
[1720961491750,1.7318508,144.4,144.34,15.3424]
[1720961494061,1.7318508,144.4,144.35,1.3854748]
[1720961494278,6.9243,144.42,144.34,15.3424]
[1720961494480,6.9243,144.42,144.35,1.3853723]
[1720961494670,6.9243,144.42,144.34,15.3424]
[1720961495766,6.9243,144.42,144.35,1.38536231]
[1720961496374,6.9243,144.42,144.35,1.38528343]
[1720961497374,6.9247,144.41,144.35,1.38528343]
[1720961497568,1.73167,144.4,144.35,1.38528343]
[1720961497776,1.73162587,144.39,144.35,1.38528343]
[1720961498647,1.73167099,144.4,144.35,1.38528343]
[1720961498846,1.73167078,144.39,144.35,1.38528343]
[1720961499081,1.73167078,144.39,144.34,15.3424]
[1720961499579,8.65767078,144.39,144.34,15.3424]
[1720961499759,6.926,144.39,144.34,15.3424]
[1720961503774,38.1723,144.41,144.34,15.3424]
[1720961503963,6.9267,144.37,144.3,16.2004]
[1720961504156,1.73214235,144.36,144.31,21.38571296]
[1720961504561,1.73205154,144.39,144.31,20.0]
[1720961505556,6.9263,144.38,144.31,20.0]
[1720961505770,1.73211371,144.37,144.31,20.0]
[1720961507356,1.73211371,144.37,144.31,21.38574299]
[1720961510983,1.73204088,144.36,144.31,21.38574299]
[1720961511370,1.73203942,144.37,144.31,21.38574299]
[1720961512470,1.73201688,144.38,144.31,21.38574299]
[1720961512673,6.9251,144.41,144.31,21.38574299]
[1720961512674,1.73181508,144.4,144.31,20.0]
[1720961512875,1.73181962,144.39,144.31,20.0]
[1720961513866,1.73180577,144.38,144.32,1.38544461]
[1720961514065,1.73181805,144.4,144.31,20.0]
[1720961514274,8.65790758,144.39,144.32,1.38552606]
[1720961515157,1.73190758,144.39,144.32,1.38552606]
[1720961515357,8.65699855,144.4,144.32,1.38552606]
[1720961515985,8.65699855,144.4,144.31,20.0]
[1720961519181,8.65699855,144.4,144.32,1.38545318]
[1720961519680,8.65699855,144.4,144.31,20.0]
[1720961519885,1.73179855,144.4,144.31,20.0]
[1720961520190,6.9264,144.38,144.31,20.0]
[1720961520387,1.73215589,144.37,144.31,20.0]
[1720961520562,1.73215589,144.37,144.3,16.2004]
[1720961520762,1.73215589,144.37,144.31,1.38571796]
[1720961521682,8.65885589,144.37,144.3,17.58610984]
[1720961521890,1.73223263,144.4,144.31,1.3857861]
[1720961522098,1.73183618,144.39,144.31,1.3857861]
[1720961522393,8.65753618,144.39,144.31,1.38552523]
[1720961522569,8.65753618,144.39,144.31,21.38552523]
[1720961523773,1.73183618,144.39,144.31,21.38552523]
[1720961523980,1.73155441,144.41,144.32,22.0473]
[1720961524279,1.73155441,144.41,144.33,20.0]
[1720961526089,53.65645441,144.41,144.33,20.0]
[1720961526291,8.65645441,144.41,144.33,20.0]
[1720961526664,1.73155441,144.41,144.33,20.0]
[1720961526871,6.9258,144.39,144.32,22.0473]
[1720961527069,1.73192497,144.38,144.32,22.0473]
[1720961527386,1.73183138,144.4,144.32,22.0473]
[1720961527685,1.73173071,144.39,144.33,1.3854651]
[1720961528079,1.73173071,144.39,144.32,22.0473]
[1720961528474,1.73173071,144.39,144.33,1.38552281]
[1720961529082,1.73173071,144.39,144.32,22.0473]
[1720961529397,8.65743071,144.39,144.32,22.0473]
[1720961530272,1.73173071,144.39,144.32,22.0473]
[1720961530480,1.73192849,144.38,144.32,22.0473]
[1720961530998,1.73192849,144.38,144.33,1.38553664]
[1720961531496,1.73191938,144.39,144.33,1.38553664]
[1720961532091,1.73191938,144.39,144.33,1.38553507]
[1720961532303,1.73191938,144.39,144.32,22.0473]
[1720961532772,1.73191938,144.39,144.32,15.8596]
[1720961532980,6.9262,144.38,144.32,15.8596]
[1720961533180,1.73209852,144.37,144.32,15.8596]
[1720961533895,1.7319592,144.41,144.32,15.8596]
[1720961534701,6.9257,144.39,144.32,15.8596]
[1720961535201,6.9262,144.38,144.32,15.8596]
[1720961535393,1.73205133,144.37,144.32,15.8596]
[1720961536284,1.73196433,144.36,144.32,15.8596]
[1720961536482,6.9257,144.39,144.32,15.8596]
[1720961536798,6.9247,144.41,144.33,1.3855714]
[1720961536999,1.73174383,144.4,144.33,1.3855714]
[1720961537196,1.73174383,144.4,144.32,15.8596]
[1720961537393,1.73174383,144.4,144.33,1.38526837]
[1720961538000,1.73155288,144.41,144.33,1.38526837]
[1720961538200,1.73155288,144.41,144.32,15.8596]
[1720961538504,1.73155288,144.41,144.33,1.38526329]
[1720961539075,1.73155298,144.42,144.34,21.3899]
[1720961539408,1.73118598,144.44,144.35,66.38494878]
[1720961539703,1.73118598,144.44,144.36,1.3849622]
[1720961540296,1.731069,144.45,144.35,65.0]
[1720961542102,1.731069,144.45,144.36,1.38485557]
[1720961542300,1.731069,144.45,144.37,15.0153]
[1720961542499,1.73106991,144.46,144.38,21.38469294]
[1720961542705,1.73090204,144.46,144.38,21.38469294]
[1720961543327,1.73080199,144.45,144.38,21.38469294]
[1720961544179,1.7308689,144.46,144.38,21.38469294]
[1720961544996,1.73085256,144.45,144.39,1.38468808]
[1720961545409,1.73086977,144.46,144.39,1.38468808]
[1720961546911,1.73079813,144.47,144.39,1.38468808]
[1720961547497,1.73079813,144.47,144.39,7.86428808]
[1720961547702,1.73079813,144.47,144.4,20.0]
[1720961547900,1.73079813,144.47,144.41,1.38463596]
[1720961550002,1.73079813,144.47,144.42,15.6373]
[1720961550194,8.65206178,144.48,144.43,1.38452942]
[1720961550899,1.73066178,144.48,144.43,1.38452942]
[1720961551615,1.73066178,144.48,144.42,15.6373]
[1720961551815,1.73066178,144.48,144.43,1.38448987]
[1720961553403,1.73044151,144.48,144.43,1.38448987]
[1720961553604,1.93044078,144.49,144.42,15.6373]
[1720961557128,1.93044078,144.49,144.43,1.38435884]
[1720961557420,1.93044078,144.49,144.42,15.6373]
[1720961558920,1.93044078,144.49,144.43,1.38457149]
[1720961559232,1.93044078,144.49,144.42,15.6373]
[1720961561131,46.93044078,144.49,144.42,15.6373]
[1720961562634,53.85174078,144.49,144.39,6.4796]
[1720961564709,53.85174078,144.49,144.4,1.38473785]
[1720961565211,46.93044078,144.49,144.4,1.38473785]
[1720961565416,8.85134078,144.49,144.39,6.4796]
[1720961565724,8.85134078,144.49,144.4,20.0]
[1720961565914,8.85134078,144.49,144.4,21.38465725]
[1720961567314,8.85134078,144.49,144.41,16.0165]
[1720961569944,1.93044078,144.49,144.41,16.0165]
[1720961571338,8.85124078,144.49,144.41,16.0165]
[1720961571643,1.93044078,144.49,144.41,16.0165]
[1720961572143,6.9221,144.47,144.41,16.0165]
[1720961572326,1.73097291,144.46,144.41,16.0165]
[1720961572529,1.73097601,144.45,144.41,16.0165]
[1720961573517,1.73097375,144.46,144.41,16.0165]
[1720961573727,1.730974,144.45,144.41,16.0165]
[1720961574440,1.730974,144.45,144.36,16.0165]
[1720961574623,1.730974,144.45,144.37,20.0]
[1720961576315,8.653874,144.45,144.36,16.0165]
[1720961576516,6.9237,144.44,144.36,16.0165]
[1720961576715,1.731324,144.43,144.36,16.0165]
[1720961576932,1.73133516,144.42,144.36,16.0165]
[1720961578419,6.9238,144.43,144.36,16.0165]
[1720961578621,1.73149276,144.42,144.36,16.0165]
[1720961579214,6.9251,144.41,144.36,16.0165]
[1720961579438,1.7316193,144.4,144.33,16.0165]
[1720961579621,1.73170822,144.39,144.34,1.38536658]